lending/lending_fUSD_20241212
["ID","MTS","AMOUNT","RATE_DAILY","PERIOD"]
[345098854,1734016239403,-500.0,0.00019747,2]
[345098855,1734016239413,-500.0,0.00019747,2]
[345098856,1734016239423,-500.0,0.00019747,2]
[345098857,1734016239433,-500.0,0.00019747,2]
[345098858,1734016239443,-515.74,0.00019747,2]
[345098859,1734016239453,-500.0,0.00019747,2]
[345098860,1734016239463,-500.0,0.00019747,2]
[345098861,1734016239473,-500.0,0.00019747,2]
[345098862,1734016239483,-500.0,0.00019747,2]
[345098863,1734016239493,-500.0,0.00019747,2]
[345098864,1734016239503,-500.0,0.00019747,2]
[345098865,1734016239516,-500.0,0.00019747,2]
[345098866,1734016239526,-500.0,0.00019747,2]
[345098867,1734016239536,-500.0,0.00019747,2]
[345098868,1734016239549,-500.0,0.00019747,2]
[345098869,1734016239559,-654.66,0.00019747,2]
[345098870,1734016239568,-500.0,0.00019747,2]
[345098871,1734016239579,-500.0,0.00019747,2]
[345098872,1734016239588,-500.0,0.00019747,2]
[345098873,1734016239598,-500.0,0.00019747,2]
[345098874,1734016239607,-578.0,0.00019747,2]
[345098875,1734016239617,-500.0,0.00019747,2]
[345098876,1734016239626,-500.0,0.00019747,2]
[345098877,1734016239638,-500.0,0.00019747,2]
[345098878,1734016239659,-500.0,0.00019747,2]
[345098879,1734016239670,-500.0,0.00019747,2]
[345098880,1734016239680,-500.0,0.00019747,2]
[345098881,1734016239690,-500.0,0.00019747,2]
[345098882,1734016239699,-500.0,0.00019747,2]
[345098883,1734016239708,-1263.84,0.00019747,2]
[345098884,1734016239718,-500.0,0.00019747,2]
[345098885,1734016239727,-500.0,0.00019747,2]
[345098886,1734016239737,-500.0,0.00019747,2]
[345098887,1734016239747,-1144.26,0.00019747,2]
[345098888,1734016239756,-993.94,0.00019747,2]
[345098889,1734016239770,-500.0,0.00019747,2]
[345098890,1734016239779,-500.0,0.00019747,2]
[345098891,1734016239789,-500.0,0.00019747,2]
[345098892,1734016239799,-613.66242597,0.00019747,2]
[345098893,1734016239808,-500.0,0.00019747,2]
[345098894,1734016239818,-500.0,0.00019747,2]
[345098895,1734016239827,-500.0,0.00019747,2]
[345098896,1734016239836,-500.0,0.00019747,2]
[345098897,1734016239845,-500.0,0.00019747,2]
[345098898,1734016239855,-500.0,0.00019747,2]
[345098899,1734016239864,-500.0,0.00019747,2]
[345098900,1734016239875,-990.43,0.00019747,2]
[345098901,1734016239887,-500.0,0.00019747,2]
[345098902,1734016239896,-500.0,0.00019747,2]
[345098903,1734016239906,-500.0,0.00019747,2]
[345098904,1734016239915,-500.0,0.00019747,2]
[345098905,1734016239925,-20000.0,0.00019747,2]
[345098906,1734016239935,-218.5881,0.00019756,2]
[345098907,1734016239944,-543.9,0.00019773,2]
[345098908,1734016239955,-627.59,0.00019773,2]
[345098909,1734016239965,-382.4128328,0.00019773,2]
[345098910,1734016239975,-500.0,0.00019773,2]
[345098911,1734016239984,-500.0,0.00019773,2]
[345098912,1734016239993,-910.45,0.00019773,2]
[345098913,1734016240002,-777.96,0.00019773,2]
[345098914,1734016240011,-500.0,0.00019773,2]
[345098915,1734016240020,-353.90798146,0.00019773,2]
[345098916,1734016240030,-692.42,0.00019773,2]
[345098917,1734016240039,-500.0,0.00019773,2]
[345098918,1734016240048,-500.0,0.00019781,2]
[345098919,1734016240057,-1000.0,0.00019799,2]
[345098920,1734016240066,-2000.0,0.000198,7]
[345098921,1734016240076,-765.72,0.00019824,30]
[345098922,1734016240085,-887.59,0.00019829,2]
[345098923,1734016240094,-190.26,0.0001987,2]
[345098924,1734016240103,-190.26,0.0001987,2]
[345098925,1734016240113,-190.26,0.0001987,2]
[345098926,1734016240122,-150.0,0.00019879,2]
[345098927,1734016240131,-259537.59135529,0.0001988,2]
[345098928,1734016240144,-8941.43143526,0.0001988,2]
[345098929,1734016240156,-5552.16670893,0.0001988,2]
[345098930,1734016240175,-500.0,0.00019747,2]
[345098931,1734016240184,-10825.69536743,0.0001988,2]
[345098932,1734016240204,-999.304445,0.0001988,2]
[345098933,1734016240216,-1675.30959513,0.0001988,2]
[345098934,1734016240255,-44608.33220435,0.0001988,2]
[345098935,1734016240264,-400.0,0.000199,7]
[345098936,1734016240274,-402.20903364,0.000199,2]
[345098937,1734016240283,-1466.19941292,0.000199,2]
[345098938,1734016240293,-324.78126168,0.000199,2]
[345098939,1734016240303,-764.41103241,0.00019936,2]
[345098940,1734016241590,-1061.58896759,0.00019936,2]
[345098941,1734016241599,-500.0,0.00019945,2]
[345098942,1734016241609,-500.0,0.00019945,2]
[345098943,1734016241618,-698.0,0.00019973,2]
[345098944,1734016241628,-7334.0,0.00019973,2]
[345098945,1734016241637,-500.0,0.00019973,2]
[345098946,1734016241647,-500.0,0.00019973,2]
[345098947,1734016241656,-500.0,0.00019973,2]
[345098948,1734016241666,-190.26,0.0001999,2]
[345098949,1734016241675,-190.26,0.0001999,2]
[345098950,1734016241685,-190.26,0.0001999,2]
[345098951,1734016241694,-190.26,0.0001999,2]
[345098952,1734016241704,-190.26,0.0001999,2]
[345098953,1734016241713,-190.26,0.0001999,2]
[345098954,1734016241896,-190.26,0.0001999,2]
[345098955,1734016241907,-190.26,0.0001999,2]
[345098956,1734016241917,-190.26,0.0001999,2]
[345098957,1734016241927,-190.26,0.0001999,2]
[345098958,1734016241936,-190.26,0.0001999,2]
[345098959,1734016241946,-190.26,0.0001999,2]
[345098960,1734016241956,-190.26,0.0001999,2]
[345098961,1734016241967,-190.26,0.0001999,2]
[345098962,1734016241977,-190.26,0.0001999,2]
[345098963,1734016241987,-190.26,0.0001999,2]
[345098964,1734016241996,-190.26,0.0001999,2]
[345098965,1734016242006,-190.26,0.0001999,2]
[345098966,1734016242015,-190.26,0.0001999,2]
[345098967,1734016242025,-190.26,0.0001999,2]
[345098968,1734016242035,-190.26,0.0001999,2]
[345098969,1734016242045,-190.26,0.0001999,2]
[345098970,1734016242055,-190.26,0.0001999,2]
[345098971,1734016242065,-190.26,0.0001999,2]
[345098972,1734016242075,-190.26,0.0001999,2]
[345098973,1734016242085,-190.26,0.0001999,2]
[345098974,1734016242095,-190.26,0.0001999,2]
[345098975,1734016242105,-190.26,0.0001999,2]
[345098976,1734016242115,-190.26,0.0001999,2]
[345098977,1734016242124,-190.26,0.0001999,2]
[345098978,1734016242134,-190.26,0.0001999,2]
[345098979,1734016242143,-190.26,0.0001999,2]
[345098980,1734016242153,-190.26,0.0001999,2]
[345098981,1734016242163,-190.26,0.0001999,2]
[345098982,1734016242173,-190.26,0.0001999,2]
[345098983,1734016242183,-190.26,0.0001999,2]
[345098984,1734016242193,-190.26,0.0001999,2]
[345098985,1734016242204,-190.26,0.0001999,2]
[345098986,1734016242214,-190.26,0.0001999,2]
[345098987,1734016242224,-190.26,0.0001999,2]
[345098988,1734016242235,-190.26,0.0001999,2]
[345098989,1734016242246,-190.26,0.0001999,2]
[345098990,1734016242256,-190.26,0.0001999,2]
[345098991,1734016242267,-190.26,0.0001999,2]
[345098992,1734016242278,-190.26,0.0001999,2]
[345098993,1734016242288,-190.26,0.0001999,2]
[345098994,1734016242298,-190.26,0.0001999,2]
[345098995,1734016242308,-190.26,0.0001999,2]
[345098996,1734016242319,-190.26,0.0001999,2]
[345098997,1734016242331,-190.26,0.0001999,2]
[345098998,1734016242342,-190.26,0.0001999,2]
[345098999,1734016242352,-190.26,0.0001999,2]
[345099000,1734016242362,-190.26,0.0001999,2]
[345099001,1734016242372,-190.26,0.0001999,2]
[345099002,1734016242381,-190.26,0.0001999,2]
[345099003,1734016242391,-190.26,0.0001999,2]
[345099004,1734016242401,-190.26,0.0001999,2]
[345099005,1734016242411,-190.26,0.0001999,2]
[345099006,1734016242420,-190.26,0.0001999,2]
[345099007,1734016242430,-190.26,0.0001999,2]
[345099008,1734016242439,-190.26,0.0001999,2]
[345099009,1734016242449,-190.26,0.0001999,2]
[345099010,1734016242458,-190.26,0.0001999,2]
[345099011,1734016242467,-190.26,0.0001999,2]
[345099012,1734016242477,-190.26,0.0001999,2]
[345099013,1734016242488,-190.26,0.0001999,2]
[345099014,1734016242499,-190.26,0.0001999,2]
[345099016,1734016242509,-190.26,0.0001999,2]
[345099017,1734016242519,-190.26,0.0001999,2]
[345099018,1734016242529,-190.26,0.0001999,2]
[345099019,1734016242538,-190.26,0.0001999,2]
[345099020,1734016242548,-190.26,0.0001999,2]
[345099021,1734016242558,-190.26,0.0001999,2]
[345099022,1734016242568,-190.26,0.0001999,2]
[345099023,1734016242579,-190.26,0.0001999,2]
[345099024,1734016242589,-190.26,0.0001999,2]
[345099025,1734016242599,-190.26,0.0001999,2]
[345099026,1734016242608,-190.26,0.0001999,2]
[345099027,1734016242618,-190.26,0.0001999,2]
[345099028,1734016242627,-190.26,0.0001999,2]
[345099029,1734016242637,-190.26,0.0001999,2]
[345099030,1734016242647,-190.26,0.0001999,2]
[345099031,1734016242657,-190.26,0.0001999,2]
[345099032,1734016242668,-190.26,0.0001999,2]
[345099033,1734016242678,-190.26,0.0001999,2]
[345099035,1734016242689,-190.26,0.0001999,2]
[345099036,1734016242700,-190.26,0.0001999,2]
[345099037,1734016242710,-190.26,0.0001999,2]
[345099038,1734016242720,-190.26,0.0001999,2]
[345099039,1734016242730,-190.26,0.0001999,2]
[345099040,1734016242739,-190.26,0.0001999,2]
[345099041,1734016242748,-190.26,0.0001999,2]
[345099042,1734016242759,-190.26,0.0001999,2]
[345099043,1734016242769,-190.26,0.0001999,2]
[345099044,1734016242779,-190.26,0.0001999,2]
[345099045,1734016242788,-190.26,0.0001999,2]
[345099046,1734016242798,-666.0,0.00019999,2]
[345099047,1734016242807,-1006.73624498,0.00019999,5]
[345099048,1734016242816,-660.34,0.00019999,2]
[345099049,1734016242826,-311.79266791,0.00019999,2]
[345099050,1734016242837,-500.0,0.00019999,2]
[345099051,1734016242847,-2888.0,0.00019999,2]
[345099052,1734016242857,-180.11894651,0.00019999,2]
[345099053,1734016242867,-44314.02201904,0.0002,3]
[345099054,1734016242877,-278147.37991424,0.0002,2]
[345099055,1734016243057,-4013.1949385,0.0002,2]
[345099056,1734016243069,-167375.55416562,0.0002,2]
[345099057,1734016243085,-50800.0,0.0002,2]
[345099058,1734016243096,-508.9,0.0002,2]
[345099059,1734016243108,-312.925,0.0002,2]
[345099060,1734016243119,-2345.160235,0.0002,2]
[345099061,1734016243131,-8353.73958392,0.0002,2]
[345099062,1734016243156,-19939.26615312,0.0002,2]
[345099063,1734016243168,-5150.86115134,0.0002,2]
[345099064,1734016243183,-11587.59283828,0.0002,2]
[345099095,1734016245499,-34514.99998,0.0002,2]
[345099097,1734016245511,-101673.64014877,0.0002,2]
[345099100,1734016245523,-5650.0,0.0002,2]
[345099102,1734016245535,-20095.0,0.0002,2]
[345099103,1734016245546,-1706.82943888,0.0002,2]
[345099104,1734016245557,-4093.64449955,0.0002,2]
[345099105,1734016245607,-16584.83640185,0.0002,2]
[345099106,1734016245647,-94326.96756836,0.0002,2]
[345099107,1734016245662,-2429.90001,0.0002,2]
[345099108,1734016245842,-425.0,0.00019602,2]
[345099109,1734016245852,-74770.11736154,0.0002,2]
[345099110,1734016458662,6969.54908246,0.00013,2]
[345099115,1734017108672,5328071.80237357,0.0001,2]
[345099116,1734017108703,3000.0,0.0001,2]
[345099117,1734017108735,5000.0,0.0001,2]
[345099118,1734017118354,-2496600.77826683,0.0001,2]
[345099119,1734017120274,10078.09374626,9e-05,2]
[345099120,1734017130262,158532.25924946,9e-05,2]
[345099121,1734017137032,28000.0,8e-05,2]
[345099122,1734017151154,-3769.655,0.000154,2]
[345099123,1734017151175,-150.0,0.00015999,2]
[345099124,1734017151198,-77392.09801519,0.00016,2]
[345099125,1734017155003,17481.36831105,6.94e-05,2]
[345099126,1734017155119,-15012.0,0.00015,10]
[345099127,1734017155139,-11317.90198481,0.00016,2]
[345099128,1734017155160,-710.63,0.00016916,2]
[345099129,1734017155182,-500.0,0.00018142,7]
[345099130,1734017155204,-500.0,0.00018142,7]
[345099131,1734017155231,-500.0,0.00018142,7]
[345099132,1734017155252,-175.13,0.00018144,2]
[345099133,1734017155272,-5202.06,0.00018191,2]
[345099134,1734017155293,-14485.02500601,0.00018215,2]
[345099136,1734017222839,2000.0,0.00017973,120]
[345099138,1734017232281,-387.4,0.00010137,2]
[345099139,1734017232303,-150.0,0.00012021,2]
[345099140,1734017232323,-153.39,0.00013699,2]
[345099141,1734017232345,-387.4,0.00016813,2]
[345099142,1734017232367,-500.0,0.00017233,2]
[345099143,1734017232388,-200.0,0.00017996,2]
[345099144,1734017232411,-9414.97499399,0.00018215,2]
[345099145,1734017232432,-3296.58,0.00018223,2]
[345099146,1734017232453,-1770.75,0.00018291,2]
[345099147,1734017232475,-1000.0,0.00018317,2]
[345099148,1734017232495,-500.0,0.00018344,2]
[345099149,1734017232522,-200.0,0.00018397,2]
[345099150,1734017232543,-500.0,0.00018415,7]
[345099151,1734017232571,-500.0,0.00018415,7]
[345099152,1734017232592,-1500.0,0.00018469,2]
[345099153,1734017232615,-250.0,0.00018469,2]
[345099154,1734017232636,-200.0,0.00018469,2]
[345099155,1734017232657,-5635.23598198,0.00018469,2]
[345099156,1734017234100,-421.56401802,0.00018469,2]
[345099157,1734017234122,-689.14,0.00018489,30]
[345099158,1734017234147,-1600.0,0.00018526,2]
[345099159,1734017234168,-2272.0,0.00018639,2]
[345099160,1734017234188,-1002.7503,0.00018683,2]
[345099161,1734017234213,-500.0,0.00018689,7]
[345099162,1734017234234,-500.0,0.00018689,7]
[345099163,1734017234256,-497.88,0.00018783,2]
[345099164,1734017234507,-30000.0,0.000188,2]
[345099165,1734017234530,-30000.0,0.000188,2]
[345099166,1734017234551,-30000.0,0.000188,2]
[345099167,1734017234573,-250.0,0.00018884,2]
[345099168,1734017234595,-151.41,0.00018914,2]
[345099169,1734017234615,-261.32,0.00018946,2]
[345099170,1734017234635,-1852.42,0.00018946,2]
[345099171,1734017234655,-500.0,0.00018962,7]
[345099172,1734017234676,-500.0,0.00018962,7]
[345099173,1734017234702,-380.734,0.00019,2]
[345099174,1734017234722,-175.13,0.00019039,2]
[345099175,1734017234743,-710.63,0.0001918,2]
[345099176,1734017234774,-1136.65,0.000192,31]
[345099177,1734017234813,-1136.65,0.000192,31]
[345099178,1734017234841,-1136.65,0.000192,31]
[345099179,1734017234868,-1136.65,0.000192,31]
[345099180,1734017234896,-1136.65,0.000192,31]
[345099181,1734017234922,-1136.65,0.000192,31]
[345099182,1734017234948,-1136.65,0.000192,31]
[345099183,1734017234974,-1136.65,0.000192,31]
[345099184,1734017235001,-1136.65,0.000192,31]
[345099185,1734017235032,-1136.65,0.000192,31]
[345099186,1734017235058,-1136.65,0.000192,31]
[345099187,1734017235084,-1136.65,0.000192,31]
[345099188,1734017235110,-1136.65,0.000192,31]
[345099189,1734017235136,-1136.65,0.000192,31]
[345099190,1734017235164,-1136.65,0.000192,31]
[345099191,1734017235190,-1136.65,0.000192,31]
[345099192,1734017235218,-66.8783974,0.00019211,2]
[345099193,1734017237131,-1533.1216026,0.00019211,2]
[345099194,1734017237153,-500.0,0.00019235,7]
[345099195,1734017237174,-664.14,0.00019235,7]
[345099196,1734017237195,-3950.1232917,0.00019399,2]
[345099197,1734017239112,-617.4513083,0.00019399,2]
[345099198,1734017239135,-2027.768,0.00019399,2]
[345099199,1734017239156,-177.898,0.00019399,2]
[345099200,1734017239178,-500.0,0.000194,2]
[345099201,1734017239203,-13401.4949,0.000194,2]
[345099202,1734017239227,-2500.0,0.00019499,2]
[345099203,1734017239249,-839.83,0.00019499,2]
[345099204,1734017239276,-500.0,0.00019499,2]
[345099205,1734017239299,-500.0,0.00019499,2]
[345099206,1734017239322,-500.0,0.00019499,2]
[345099207,1734017239345,-500.0,0.00019499,2]
[345099208,1734017239368,-500.0,0.00019499,2]
[345099209,1734017239392,-549.69,0.00019499,2]
[345099210,1734017239415,-500.0,0.00019499,2]
[345099211,1734017239438,-500.0,0.00019499,2]
[345099212,1734017239461,-500.0,0.00019499,2]
[345099213,1734017239484,-643.28,0.00019499,2]
[345099214,1734017239506,-665.97,0.00019499,2]
[345099215,1734017239530,-500.0,0.00019499,2]
[345099216,1734017239552,-500.0,0.00019499,2]
[345099217,1734017239574,-167.72510328,0.00019499,2]
[345099218,1734017239597,-500.0,0.00019499,2]
[345099219,1734017239619,-500.0,0.00019499,2]
[345099220,1734017239641,-500.26105984,0.00019499,2]
[345099221,1734017239663,-500.0,0.00019499,2]
[345099222,1734017239685,-500.0,0.00019499,2]
[345099223,1734017239707,-500.0,0.00019499,2]
[345099224,1734017239729,-500.0,0.00019499,2]
[345099225,1734017239751,-500.0,0.00019499,2]
[345099226,1734017239778,-500.0,0.00019499,2]
[345099227,1734017239799,-500.0,0.00019499,2]
[345099228,1734017239822,-572.83,0.00019499,2]
[345099229,1734017239844,-500.0,0.00019499,2]
[345099230,1734017239866,-505.75,0.00019499,2]
[345099231,1734017239889,-500.0,0.00019499,2]
[345099232,1734017239911,-500.0,0.00019499,2]
[345099233,1734017239934,-504.08633857,0.00019499,2]
[345099234,1734017239955,-176.98940213,0.00019499,2]
[345099235,1734017239979,-500.0,0.00019499,2]
[345099236,1734017240002,-1001.23,0.00019499,2]
[345099237,1734017240025,-1105.86,0.00019499,2]
[345099238,1734017240046,-869.7,0.00019499,2]
[345099239,1734017240068,-500.0,0.00019499,2]
[345099240,1734017240090,-500.0,0.00019499,2]
[345099241,1734017240112,-500.0,0.00019499,2]
[345099242,1734017240136,-588.83,0.00019499,2]
[345099243,1734017240158,-500.0,0.00019499,2]
[345099244,1734017240180,-605.31,0.00019499,2]
[345099245,1734017240204,-500.0,0.00019499,2]
[345099246,1734017240227,-500.0,0.00019499,2]
[345099247,1734017240249,-500.0,0.00019499,2]
[345099248,1734017240271,-500.0,0.00019499,2]
[345099249,1734017240295,-866.62,0.00019499,2]
[345099250,1734017240320,-500.0,0.00019499,2]
[345099251,1734017240343,-500.0,0.00019499,2]
[345099252,1734017240365,-500.0,0.00019499,2]
[345099253,1734017240387,-500.0,0.00019499,2]
[345099254,1734017240410,-500.0,0.00019499,2]
[345099255,1734017240431,-2176.6679,0.000195,2]
[345099256,1734017240453,-500.0,0.00019508,7]
[345099257,1734017240475,-503.38027209,0.00019599,2]
[345099258,1734017240499,-713.13,0.00019599,2]
[345099259,1734017240540,-634.72,0.00019599,2]
[345099260,1734017240570,-500.0,0.00019599,2]
[345099261,1734017240598,-215.04,0.00019599,2]
[345099262,1734017240625,-500.0,0.00019599,2]
[345099263,1734017240653,-500.0,0.00019599,2]
[345099264,1734017240678,-500.0,0.00019599,2]
[345099265,1734017240705,-500.0,0.00019599,2]
[345099266,1734017240734,-500.0,0.00019599,2]
[345099267,1734017240762,-500.0,0.00019599,2]
[345099268,1734017240788,-500.0,0.00019599,2]
[345099269,1734017240812,-500.0,0.00019599,2]
[345099270,1734017240837,-500.0,0.00019599,2]
[345099271,1734017240869,-500.0,0.00019599,2]
[345099272,1734017240895,-500.0,0.00019599,2]
[345099273,1734017240921,-500.0,0.00019599,2]
[345099274,1734017240951,-500.0,0.00019599,2]
[345099275,1734017240978,-153.16986459,0.00019599,2]
[345099276,1734017241005,-158.48893471,0.00019599,2]
[345099277,1734017241037,-500.0,0.00019599,2]
[345099278,1734017241063,-59157.94040373,0.000196,2]
[345099279,1734017241091,-1000.0,0.00019673,2]
[345099280,1734017241118,-199.2997,0.0001971,2]
[345099281,1734017241145,-839.83,0.00019773,2]
[345099282,1734017241170,-500.0,0.00019773,2]
[345099283,1734017241195,-500.0,0.00019773,2]
[345099284,1734017241225,-500.0,0.00019773,2]
[345099285,1734017241251,-500.0,0.00019773,2]
[345099286,1734017241280,-500.0,0.00019773,2]
[345099287,1734017241305,-549.69,0.00019773,2]
[345099288,1734017241329,-500.0,0.00019773,2]
[345099289,1734017241352,-500.0,0.00019773,2]
[345099290,1734017241378,-500.0,0.00019773,2]
[345099291,1734017241406,-665.97,0.00019773,2]
[345099292,1734017241434,-500.0,0.00019773,2]
[345099293,1734017241458,-185.07,0.00019773,2]
[345099294,1734017241482,-500.0,0.00019773,2]
[345099295,1734017241506,-500.0,0.00019773,2]
[345099296,1734017241538,-500.0,0.00019773,2]
[345099297,1734017241564,-500.0,0.00019773,2]
[345099298,1734017241590,-500.0,0.00019773,2]
[345099299,1734017241614,-500.0,0.00019773,2]
[345099300,1734017241637,-500.0,0.00019773,2]
[345099301,1734017241660,-500.0,0.00019773,2]
[345099302,1734017241684,-500.0,0.00019773,2]
[345099303,1734017241708,-572.83,0.00019773,2]
[345099304,1734017241734,-500.0,0.00019773,2]
[345099305,1734017241758,-505.75,0.00019773,2]
[345099306,1734017241785,-500.0,0.00019773,2]
[345099307,1734017241809,-500.0,0.00019773,2]
[345099308,1734017241833,-500.0,0.00019773,2]
[345099309,1734017241856,-1001.23,0.00019773,2]
[345099310,1734017241879,-1105.86,0.00019773,2]
[345099311,1734017241902,-869.7,0.00019773,2]
[345099312,1734017241924,-500.0,0.00019773,2]
[345099313,1734017241948,-500.0,0.00019773,2]
[345099314,1734017241973,-500.0,0.00019773,2]
[345099315,1734017241997,-500.0,0.00019773,2]
[345099316,1734017242023,-605.31,0.00019773,2]
[345099317,1734017242046,-500.0,0.00019773,2]
[345099318,1734017242070,-500.0,0.00019773,2]
[345099319,1734017242093,-500.0,0.00019773,2]
[345099320,1734017242115,-500.0,0.00019773,2]
[345099321,1734017242140,-866.62,0.00019773,2]
[345099322,1734017242164,-500.0,0.00019773,2]
[345099323,1734017242187,-500.0,0.00019773,2]
[345099324,1734017242214,-415.7239822,0.00019773,2]
[345099325,1734017242238,-500.0,0.00019773,2]
[345099326,1734017242266,-500.0,0.00019773,2]
[345099327,1734017242292,-500.0,0.00019781,7]
[345099328,1734017242317,-500.0,0.00019809,2]
[345099329,1734017242343,-500.0,0.00019809,2]
[345099330,1734017242370,-500.86840137,0.00019809,2]
[345099331,1734017242398,-500.0,0.00019809,2]
[345099332,1734017242424,-500.0,0.00019809,2]
[345099333,1734017242448,-454.91396695,0.00019809,2]
[345099334,1734017242474,-461.05241024,0.00019809,2]
[345099335,1734017242501,-500.0,0.00019809,2]
[345099336,1734017242546,-500.0,0.00019809,2]
[345099337,1734017242572,-500.0,0.00019809,2]
[345099338,1734017242597,-500.0,0.00019809,2]
[345099339,1734017242622,-500.0,0.00019809,2]
[345099340,1734017242647,-834.58,0.00019809,2]
[345099341,1734017242671,-500.0,0.00019809,2]
[345099342,1734017242695,-500.0,0.00019809,2]
[345099343,1734017242719,-500.0,0.00019809,2]
[345099344,1734017242742,-500.0,0.00019809,2]
[345099345,1734017242768,-500.0,0.00019809,2]
[345099346,1734017242792,-500.0,0.00019809,2]
[345099347,1734017242815,-500.0,0.00019809,2]
[345099348,1734017242838,-2195.24,0.00019809,2]
[345099349,1734017242862,-500.0,0.00019809,2]
[345099350,1734017242886,-500.0,0.00019809,2]
[345099351,1734017242909,-500.0,0.00019809,2]
[345099352,1734017242933,-500.0,0.00019809,2]
[345099353,1734017242957,-500.0,0.00019809,2]
[345099354,1734017242981,-500.0,0.00019809,2]
[345099355,1734017243004,-500.0,0.00019809,2]
[345099356,1734017243030,-500.0,0.00019809,2]
[345099357,1734017243304,-176728.18320978,0.0001981,2]
[345099358,1734017243325,-500.0,0.0001984,2]
[345099359,1734017243347,-713.13,0.00019873,2]
[345099360,1734017243367,-634.72,0.00019873,2]
[345099361,1734017243388,-643.66,0.00019873,2]
[345099362,1734017243410,-500.0,0.00019873,2]
[345099363,1734017243431,-500.0,0.00019873,2]
[345099364,1734017243452,-500.0,0.00019873,2]
[345099365,1734017243474,-500.0,0.00019873,2]
[345099366,1734017243494,-500.0,0.00019873,2]
[345099367,1734017243516,-500.0,0.00019873,2]
[345099368,1734017243537,-500.0,0.00019873,2]
[345099369,1734017243558,-226.14,0.00019873,2]
[345099370,1734017243579,-500.0,0.00019873,2]
[345099371,1734017243600,-500.0,0.00019873,2]
[345099372,1734017243623,-403.63720963,0.00019873,2]
[345099373,1734017243645,-500.0,0.00019873,2]
[345099374,1734017243667,-557.92852359,0.00019873,2]
[345099375,1734017243688,-500.0,0.00019873,2]
[345099376,1734017243710,-1600.0,0.00019896,2]
[345099377,1734017243731,-220.0,0.000199,2]
[345099378,1734017243753,-2067.2196,0.000199,2]
[345099379,1734017243779,-5707.2001,0.000199,2]
[345099380,1734017243809,-284.38951938,0.000199,2]
[345099381,1734017244041,-539.36553686,0.000199,2]
[345099382,1734017244063,-167.86451008,0.000199,2]
[345099383,1734017244084,-977.46627528,0.000199,2]
[345099384,1734017244106,-243.58594626,0.000199,2]
[345099385,1734017244129,-300.0,0.00019901,2]
[345099386,1734017244150,-175.13,0.00019934,2]
[345099387,1734017244173,-1000.0,0.00019973,2]
[345099388,1734017244195,-500.0,0.00019973,2]
[345099389,1734017244219,-666.0,0.00019999,2]
[345099390,1734017244242,-671.4050086,0.00019999,2]
[345099391,1734017244263,-150.0,0.00019999,2]
[345099392,1734017244290,-500.0,0.00019999,2]
[345099393,1734017244312,-2888.0,0.00019999,2]
[345099394,1734017244333,-597.0,0.0002,2]
[345099395,1734017244354,-2793.21199807,0.0002,2]